Cogmind - Beta 15 --- EXPLORER MODE // 2025.09.20 @ 21:50:09 Player: daer'V Result: Destroyed by A4-MH2(R) with Subdweller Laser Performance ------------- Evolutions (0) 0 Regions Visited (2) 400 Robots Destroyed (10) 50 Value Destroyed (78) 78 Prototype IDs (2) 40 Alien Tech Used (0) 0 Bonus (0) 0 TOTAL SCORE: 568 Bonus ------- None Cogmind --------- Core Integrity 0/250 Matter 300/300 Energy 99/100 System Corruption 2% Temperature Cool (6) Movement Core (200) Ox3 Location -10/Subcaves Parts ------- > --- POWER (2) -------- (None) > --- PROPULSION (2) --- (None) > --- UTILITY (2) ------ Medium Storage Unit > --- WEAPON (2) ------- (None) > --- INVENTORY (10) --- (None) Peak State ------------ > --- POWER ------------ Ion Engine Light Ion Engine > --- PROPULSION ------- Light Treads Light Treads > --- UTILITY ---------- Medium Storage Unit Improved Terrain Scanner > --- WEAPON ----------- EM Pulse Gun Small Laser > --- INVENTORY -------- (None) [Rating: 10] Favorites ----------- Power Ion Engine Engine Ion Engine Propulsion Light Treads Treads Light Treads Utility Medium Storage Unit Device Improved Terrain Scanner Storage Medium Storage Unit Weapon Small Laser Energy Gun Small Laser Build | -11 -10 -10 ------- Run | Yrd Mat Sub Slots Evolved 1 | . 1 . Power 1 | . 1 . Propulsion . | . . . Utility . | . . . Weapon . | . . . Parts Attached 10 | 7 2 1 Power 4 | 1 2 1 Engine 4 | 1 2 1 Core . | . . . Reactor . | . . . Propulsion 2 | 2 . . Treads 2 | 2 . . Leg . | . . . Wheel . | . . . Hover . | . . . Flight . | . . . Utility 2 | 2 . . Device 1 | 1 . . Storage 1 | 1 . . Processor . | . . . Hackware . | . . . Protection . | . . . Artifact . | . . . Weapon 2 | 2 . . Energy Gun 2 | 2 . . Energy Cannon . | . . . Ballistic Gun . | . . . Ballistic Cannon . | . . . Launcher . | . . . Special Weapon . | . . . Impact Weapon . | . . . Slashing Weapon . | . . . Piercing Weapon . | . . . Special Melee Weapon . | . . . Unidentified Prototypes . | . . . Parts Lost 6 | . . 6 Power 3 | . . 3 Propulsion 2 | . . 2 Utility 1 | . . 1 Weapon . | . . . Highest Loss Streak 2 | . . 2 To Critical Strikes . | . . . Average Backups . | . . . Power . | . . . Propulsion . | . . . Utility . | . . . Weapon . | . . . Tool/Special . | . . . Unused Backups 1 | 1 . . Power 1 | 1 . . Propulsion . | . . . Utility . | . . . Weapon . | . . . Tool/Special . | . . . Average Slot Usage (%) 79 | . 90 62 Engine 21 | . 23 17 Treads 23 | . 25 20 Device 11 | . 12 11 Storage 12 | . 12 12 Energy Gun 9 | . 16 . Peak Build Rating 10 | 9 10 8 Average Rating 7 | 6 9 7 On Entrance 5 | . 9 8 Naked Turns . | . . . Heaviest Build 22 | 19 22 19 Greatest Support 40 | 40 40 40 Greatest Overweight (x) 5 | 4 . 5 Average Overweight (x) . | . . . Largest Inventory Capacity 10 | 10 10 10 Average Capacity 9 | 9 10 10 Most Carried 4 | 4 1 1 Average Carried . | . . . Final Capacity 10 | 10 10 10 Final Carried 1 | 1 . . Class Distribution -------------------- 100% | Hacker-Mutant Dominant Class ---------------- Hacker-Mutant | -10/Materials Hacker-Mutant | -10/Subcaves Resources | -11 -10 -10 ----------- Run | Yrd Mat Sub Matter Collected 319 | 280 29 10 Remotely . | . . . Salvage Created 321 | 250 71 . Parts 24 | 23 1 . Haulers Intercepted . | . . . Recyclers Shooed . | . . . Parts Field Recycled . | . . . Retrieved Matter . | . . . Parts Self-Destructed . | . . . Prevented . | . . . Kills | -11 -10 -10 ------- Run | Yrd Mat Sub Combat Hostiles Destroyed 1 | . 1 . Guns 1 | . 1 . Classes Destroyed 4 | 3 1 . Worker 3 | 2 1 . Tunneler 5 | 5 . . Recycler 1 | 1 . . Grunt 1 | . 1 . Best Kill Streak 2 | 2 1 . Combat Bots Only 1 | . 1 . Max Kills in Single Turn 1 | 1 1 . Gunslinging . | . . . Exploded . | . . . Melee . | . . . Uniques/NPCs Destroyed . | . . . Combat | -11 -10 -10 -------- Run | Yrd Mat Sub Hostile Shots Fired 83 | . 2 81 Missed 26 | . . 26 Hits 57 | . 2 55 Projectile 57 | . 2 55 Critical Strikes 2 | . . 2 Damage Taken 807 | . 12 795 Core 258 | . . 258 Absorbed by Shields . | . . . Ignored by Resistances 485 | . 8 477 Regen/Repaired (Parts) 6 | . 6 . Core Remaining (%) 100 | 100 . . Volleys Fired 23 | 16 7 . Largest 2 | 2 2 . Hottest 80 | 80 80 . Shots Fired 41 | 32 9 . Gun 41 | 32 9 . Cannon . | . . . Launcher . | . . . Special . | . . . Kinetic . | . . . Thermal 23 | 16 7 . Explosive . | . . . Electromagnetic 18 | 16 2 . Robot Hit Streak 15 | 15 11 . Robot Miss Streak 1 | 1 1 . Penetration Max . | . . . Secondary Targets . | . . . Shots Hit Robots 30 | 23 7 . Core Hits 13 | 9 4 . Critical Kills . | . . . Critical Parts Destroyed . | . . . Critical Strikes . | . . . Melee Attacks . | . . . Impact . | . . . Slashing . | . . . Piercing . | . . . Sneak Attacks . | . . . Combat Hostiles . | . . . Follow-up Attacks . | . . . Damage Inflicted 354 | 277 77 . Guns 354 | 277 77 . Cannons . | . . . Explosions . | . . . Melee . | . . . Ramming . | . . . Kinetic . | . . . Thermal 143 | 90 53 . Explosive . | . . . Electromagnetic 211 | 187 24 . Impact . | . . . Slashing . | . . . Piercing . | . . . Highest Corruption 2 | . 2 2 Average Corruption 1 | . 1 2 Corruption Purged . | . . . Corruption Blocked . | . . . Effects 6 | . 2 4 Message Errors 2 | . 1 1 Matter Fused 1 | . 1 . Heat Flow Errors 1 | . . 1 Energy Discharges 1 | . . 1 Data Loss (minor) 1 | . . 1 Overload Shots . | . . . Overflow Damage . | . . . Projectiles . | . . . Explosions . | . . . Melee . | . . . Knockbacks . | . . . Impact . | . . . Kinetic . | . . . Secondary . | . . . Self-Inflicted Damage . | . . . Shots . | . . . Rammed . | . . . Targets Rammed . | . . . Kicked . | . . . Crushed . | . . . Highest Temperature 97 | 72 66 97 Average Temperature 24 | 20 30 62 Received Heat Transfer 396 | . 12 384 Siege Activations . | . . . Martial Activations . | . . . Shielding Activations . | . . . Robots Disrupted . | . . . Combat Hostiles . | . . . Robots Corrupted . | . . . Combat Hostiles . | . . . Parts Fried 1 | 1 . . Impact Corruptions . | . . . Robots Melted . | . . . Combat Hostiles . | . . . Parts Melted . | . . . Heat Transferred 325 | 200 125 . Parts Sabotaged . | . . . Parts Stolen . | . . . Parts Stripped . | . . . Power Chain Reactions . | . . . Alert | -11 -10 -10 ------- Run | Yrd Mat Sub Maximum Alert Level . | . . . Low Security (%) 100 | 100 100 . Level 1 . | . . . Level 2 . | . . . Level 3 . | . . . Level 4 . | . . . Level 5 . | . . . High Security . | . . . Max Security . | . . . Peak Influence 30 | 10 30 . Initial . | . . . Average 2 | 1 3 . Influence Increases 86 | 40 46 . Destroy 0b10 Robot/C 20 | . 20 . Destroy 0b10 Robot/NC 45 | 40 5 . Destroy Leader 10 | . 10 . Successful Hack 11 | . 11 . Influence Decreases 86 | 40 46 . Time Decay 86 | 40 46 . Squads Dispatched 2 | . 2 . Investigation 2 | . 2 . Extermination . | . . . Reinforcement . | . . . Assault . | . . . Garrison . | . . . Intercept . | . . . Searches Triggered . | . . . Construction Impeded . | . . . Haulers Reinforced . | . . . Active Scanning Responses . | . . . Cargo Convoy Interrupts . | . . . Stealth | -11 -10 -10 --------- Run | Yrd Mat Sub Distress Signals . | . . . Communications Jammed . | . . . Distress Signals . | . . . Times Spotted 6 | . 3 3 Peak Tracking Total 3 | . 1 3 Tactical Retreats . | . . . Traps | -11 -10 -10 ------- Run | Yrd Mat Sub Traps Triggered 1 | . 1 . Indirectly . | . . . Trap Hack Attempts . | . . . Triggered . | . . . Disarmed . | . . . Reprogrammed . | . . . Reused . | . . . Traps Extracted . | . . . Installed . | . . . Triggered . | . . . Machines | -11 -10 -10 ---------- Run | Yrd Mat Sub Machines Disabled . | . . . Max in Single Turn . | . . . Machines Repaired . | . . . Machines Dismantled . | . . . Machines Sabotaged . | . . . Overloaded Fab Kills . | . . . Hacking | -11 -10 -10 --------- Run | Yrd Mat Sub Machines Accessed 3 | . 3 . Terminals 2 | . 2 . Fabricators . | . . . Repair Stations 1 | . 1 . Recycling Units . | . . . Scanalyzers . | . . . Garrison Access . | . . . Total Hacks 12 | . 12 . Successful 11 | . 11 . Failed 1 | . 1 . Catastrophic . | . . . Database Lockouts . | . . . Manual . | . . . Terminals 8 | . 8 . Fabricators . | . . . Repair Stations 4 | . 4 . Recycling Units . | . . . Scanalyzers . | . . . Garrison Access . | . . . Terminal Hacks 7 | . 7 . Record 4 | . 4 . Prototype ID Bank 1 | . 1 . Hauler Manifests 1 | . 1 . Registered Components 1 | . 1 . Fabricator Hacks . | . . . Repair Station Hacks 4 | . 4 . Scan Component 3 | . 3 . Repair 1 | . 1 . Recycling Unit Hacks . | . . . Scanalyzer . | . . . Garrison Access Hacks . | . . . Unauthorized Hacks . | . . . Terminals . | . . . Fabricators . | . . . Repair Stations . | . . . Recycling Units . | . . . Scanalyzers . | . . . Garrison Access . | . . . Data Cores Recovered . | . . . Used . | . . . Hacking Detections 2 | . 2 . Full Trace Events 2 | . 2 . Feedback Events 2 | . 2 . Corruption 2 | . 2 . Feedback Blocked . | . . . Robot Schematics Acquired . | . . . Robots Built . | . . . Authchips . | . . . Time . | . . . Total Robot Build Rating . | . . . Part Schematics Acquired . | . . . Parts Built . | . . . Authchips . | . . . Time . | . . . Total Part Build Rating . | . . . Parts Repaired 1 | . 1 . Time 26 | . 26 . Parts Recycled . | . . . Recycled Matter . | . . . Retrieved Matter . | . . . Retrieved Components . | . . . Parts Scanalyzed . | . . . Part Schematics Acquired . | . . . Parts Damaged . | . . . Bothacking | -11 -10 -10 ------------ Run | Yrd Mat Sub Used RIF Installer . | . . . Robots Hacked . | . . . Non-combat . | . . . Combat . | . . . Robot Hacks Applied . | . . . Relay Couplers Released . | . . . Fabnet Peak Effective % . | . . . Robots Rewired . | . . . Allies Hacked . | . . . Hacks Repelled . | . . . Allies | -11 -10 -10 -------- Run | Yrd Mat Sub Total Allies . | . . . Largest Group . | . . . Highest-Rated Group . | . . . Highest-Rated Ally . | . . . Total Orders . | . . . Ally Attacks . | . . . Total Damage . | . . . Kills . | . . . Allies Corrupted . | . . . Allies Melted . | . . . Intel | -11 -10 -10 ------- Run | Yrd Mat Sub Active Infowar (turns) 723 | 160 341 222 Terrain 723 | 160 341 222 Robot Analysis Total . | . . . Derelict Logs Recovered . | . . . Drone Launches . | . . . Drone Recoveries . | . . . Exploration | -11 -10 -10 ------------- Run | Yrd Mat Sub Turns Passed 830 | 265 341 224 Spaces Moved 461 | 131 202 128 Core 72 | 59 . 13 Treads 389 | 72 202 115 Legs . | . . . Wheels . | . . . Hover . | . . . Flight . | . . . Fastest Speed 50 | 50 160 160 Average Speed 161 | 152 160 173 Slowest Speed 300 | 250 160 300 Overloaded Moves . | . . . Propulsion Burnouts . | . . . Robots Hopped . | . . . Potential Cave-ins . | . . . Cave-ins Triggered . | . . . Exploration Rate (%) 16 | 7 34 8 Regions Visited 2 Branch Regions 1 Pre-discovered Areas . | . . . Known Exits Taken 2 | 1 1 . Unknown Exits Taken . | . . . Scrap Searched . | . . . Spaces Dug . | . . . Terrain Destroyed . | . . . Melee . | . . . Projectile . | . . . AOE . | . . . Terrain Rammed . | . . . Walls Destroyed . | . . . Machines Disabled . | . . . Actions | -11 -10 -10 --------- Run | Yrd Mat Sub Total 509 | 166 211 132 Wait . | . . . Move 459 | 130 201 128 Hop . | . . . Pick Up 13 | 10 1 2 Fast Attach . | . . . Attach 11 | 8 2 1 Detach . | . . . Swap . | . . . Drop 3 | 2 . 1 Fire 23 | 16 7 . Melee . | . . . Ram . | . . . Kick . | . . . Crush . | . . . Escape Stasis . | . . . Rewire . | . . . Trap . | . . . Miscellaneous . | . . . Route ------- -11/Scrapyard -10/Materials (discovered 3 exits: *Mat / *Min / *Sub) -10/Subcaves History --------- Turn | Location | Event 117 | -11/Scrapyard | Identified exit to Materials 117 | -11/Scrapyard | Discovered exit to Materials (range 14) 266 | -11/Scrapyard | Entered Materials 266 | -10/Materials | Evolved 1 slot: Power x1 267 | -10/Materials | Met a group of wandering Federalists 306 | -10/Materials | Build established: Hacker-Mutant 370 | -10/Materials | Lost 3 allies 500 | -10/Materials | Identified exit to Materials 500 | -10/Materials | Discovered exit to Materials (range 8) 578 | -10/Materials | Identified exit to Mines 578 | -10/Materials | Discovered exit to Mines (range 10) 594 | -10/Materials | Identified exit to Subcaves 594 | -10/Materials | Discovered exit to Subcaves (range 10) 599 | -10/Materials | Repaired Sml. Laser? 607 | -10/Materials | Entered Subcaves 608 | -10/Subcaves | Continued accompanying wandering Federalists (2) 727 | -10/Subcaves | A Subdweller sparked back to life 727 | -10/Subcaves | A Subdweller sparked back to life 799 | -10/Subcaves | Core integrity fell below 50% 825 | -10/Subcaves | Core integrity fell below 20% 831 | -10/Subcaves | Destroyed by A4-MH2(R) with Subdweller Laser Last Messages --------------- 00755_ V9-OZB(u) builds Twisted Machinery. 00768_ A derelict emerges from the shadows: "Hey wait up! Finally some friendlies. We were scared out of our wits watching Subs pass by here several times." 00776_ UA-7G9(g) destroyed. 00777_ V9-OZB(u) tweaks Twisted Machinery. 00779_ Subatomizers dissect the Ion Engine. 00782_ V9-OZB(u) builds Twisted Machinery. 00790_ |MT2I/KA=LS4EKBRPNBPCVZ&2FRQKE#WNU 00790_ Lgt. Treads destroyed. 00793_ Acquired Ion Engine. 00794_ Lgt. Treads destroyed. 00795_ Acquired 10 matter. 00801_ Subatomizers dissect the Salvaging Laser. 00810_ System corrupted: Component data lost. 00813_ Subatomizers dissect the Salvaging Laser. 00828_ Ion Engine destroyed. 00829_ Imp. Terrain Scanner destroyed. Map ----- +----------------------------------------------------+ | ?????????????????## ?????????????????????????? | | ???????????????### ?? ?? ????????????????????? | | ??????????#???## ? ???????????????#????????? | | ?????????#????? ? ????????????????#???????? | | ???????????????? ? ? ????????????????????? | | ??????????#??????#"""#?# ????#????????????????? | | ?????????????????# #?# ###????????#???#????? | | ?????????????????# #?? #"#########?????????? | | ??????#??????????## #?##"""#" #?????????? | | ??????#??????????#"" ###" """ #?????????? | | ?????????????????# "" ##"""" ###?????????? | | ????????????????## "" ""# " #???????????? | | ?????????#?#??#?# """"""" #???????????? | | ??????????#?#???## """" ###??????#??? | | ????????????????## " "" #?????????? | | ????????????????# "" " ##????????? | | ??????????????### " ##??#??????? | | ??????????????# "## ###?????????? | | ????????#????### [%" ""########??????????? | | ????????????#?#"" "## "# ###???#???????#?????? | | ???????#??????##" #?# #### #???????????????????? | | ????????????#?## ### ######?#??????##?????????? | | ??????????????# # R #####?????????#?????????? | | ?????????##???# ; RR <#????#??#??#?????????? | | ??????????????# &###?????#?????????????? | | ??????????????## # @ #?#?????#??##?????????? | | ?????????#?????##?## #??###??#?????????????? | | ??????????????????## << #??#?#????????????????? | | ????????????????### #?????????????????????? | | ?????????????????# ##????#??#????????????? | | ?????????????????# #??????#?????????????? | | ?????????????#???### #?#??????#???????????? | | ??????????????????# # ##????????????????????? | | ??????????????????## ####?????????????????????? | | ??????????????????# ##?#??????????????????????? | | ??????????????????## ##????????#??????????????? | | ??????????????##?#?# # ##?#????????????????????? | | ????????????????#??# #??????????????????????? | | ????????????#?#????# #?#????????????????????? | | ???????????????????## #??????????????????????? | | ????????????????????## ##?####?????????????????? | | ??????????????????#?# ##?# ##????????????????? | | ????????????????????# ### ##???????????????? | | ?????????????#??????### ##??????????????? | | ??????????????????????## ##?????????????? | | ???????????????????????# ##????????????? | | ??????????????????# ## ##???????????? | | ???????????????????# #??????????? | | ???????????????????## #????????? | | ????????????????????## ### #????????? | +----------------------------------------------------+ Best States ------------- Heat Dissipation 25 Energy Generation 15 Energy Capacity 275 Matter Stores 300 Matter Capacity 300 Sight Range 16 Terrain Scan Range 16 Terrain Scan Density 10 Resistance: KI 35 Resistance: TH 35 Resistance: EX 35 Resistance: EM 35 Resistance: I 35 Resistance: S 35 Resistance: P 35 Evasion (%) 50 Recoil Reduction 2 Offensive Hacking 20 Item Schematics ----------------- None Robot Schematics ------------------ None Fabricated ------------ Nothing Repaired ---------- Sml. Laser | 91% | -10/Materials Alien Tech Used ----------------- None Achievements -------------- Shopping List Challenges ------------ None Game ------ Seed GrenadeGravityGreatsword Manual? 0 Play Time 00:15:51 Cumulative 10.1 hours Start 2025.09.20 @ 21:36:07 End 2025.09.20 @ 21:50:09 Sessions 1 Manual Loads 0 Difficulty Explorer Special Mode None Game No. 44 Rogue 40 Adventurer 3 Explorer 1 Win Type - Total 0 Types 0/0/0/0/0/0/0/0/0/0 Lore% 0 Gallery% 7 Achievement% 6 Wizard Run 0 Options --------- Layout 1 ASCII 0 Keyboard 0 Movement Mouse Keybinds 0 Fullscreen 1 Font 48/Smallcaps Map View 50x35 Zoom Use 0% Tactical HUD 1 Map Filters NONE Filters NONE Steam 1 RUN: 8253fe61-c831-430f-b658-7ed881faff96